bitfinex-derivatives/quotes_ETHF0:USTF0_20250602
["timestamp","ask_amount","ask_price","bid_price","bid_amount"]
[1748894065803,25.4,2533.9,2533.8,0.78897]
[1748894066306,26.6736,2533.9,2533.8,0.78897]
[1748894066810,25.4,2533.9,2533.8,0.78897]
[1748894068005,25.4,2533.9,2533.8,2.12787]
[1748894069812,0.00591938,2534.1,2534.0,0.78891]
[1748894070204,25.40591938,2534.1,2534.0,0.78891]
[1748894070409,25.40591938,2534.1,2534.0,3.99671]
[1748894070709,0.00591938,2534.1,2534.0,3.99671]
[1748894070910,0.00591938,2534.1,2534.0,5.31691]
[1748894072419,0.00591938,2534.1,2534.0,3.99671]
[1748894072614,0.67191938,2534.1,2534.0,3.99671]
[1748894072814,1.95111938,2534.1,2534.0,3.99671]
[1748894074017,1.95111938,2534.1,2534.0,0.78891]
[1748894080227,3.41003762,2534.3,2534.2,0.78885]
[1748894080228,0.20223762,2534.3,2534.2,0.78885]
[1748894080487,0.017,2536.0,2534.5,0.78876]
[1748894080488,0.6687,2534.9,2534.5,0.78876]
[1748894080877,25.4,2534.8,2534.5,3.99656]
[1748894081420,25.40591938,2534.8,2534.5,3.99656]
[1748894081817,25.40591938,2534.8,2534.5,4.62456]
[1748894083518,27.28451938,2534.8,2534.5,4.62456]
[1748894087923,0.00591938,2534.8,2534.5,4.62456]
[1748894088326,25.4,2534.7,2534.5,4.62456]
[1748894089126,0.00591938,2534.8,2534.5,4.62456]
[1748894089623,25.40591938,2534.8,2534.5,4.62456]
[1748894090224,3.40987609,2534.6,2534.3,0.00591938]
[1748894090423,20.3315,2534.5,2534.4,0.78879]
[1748894091229,45.7315,2534.5,2534.4,0.78879]
[1748894093731,46.52026,2534.5,2534.3,0.79471938]
[1748894094126,48.85204907,2534.5,2534.3,0.79473938]
[1748894094326,48.06327907,2534.5,2534.4,0.78879]
[1748894094622,46.52028,2534.5,2534.4,0.78879]
[1748894094835,48.0666645,2534.5,2534.4,0.78879]
[1748894095126,45.7315,2534.5,2534.4,0.78879]
[1748894095335,27.3325,2534.5,2534.4,0.78879]
[1748894095632,52.1218308,2534.5,2534.4,0.78879]
[1748894096330,48.0648308,2534.5,2534.4,0.78879]
[1748894097235,29.6688308,2534.5,2534.4,0.78879]
[1748894097530,48.0648308,2534.5,2534.4,0.78879]
[1748894099333,48.0638308,2534.5,2534.4,0.78879]
[1748894099633,45.7275,2534.5,2534.4,0.78879]
[1748894100126,1.9325,2534.5,2534.4,3.99659]
[1748894100334,6.09e-06,2534.6,2534.5,0.78876]
[1748894100630,6.09e-06,2534.6,2534.5,1.41636]
[1748894100844,0.00591938,2534.8,2534.5,1.41636]
[1748894100845,5.47e-06,2534.8,2534.7,0.78869]
[1748894101134,5.47e-06,2534.8,2534.7,3.99649]
[1748894101327,5.47e-06,2534.8,2534.7,8.99649]
[1748894101540,5.47e-06,2534.8,2534.7,10.30919]
[1748894102028,5.47e-06,2534.8,2534.7,5.30919]
[1748894102230,5.47e-06,2534.8,2534.7,10.30919]
[1748894103443,5.47e-06,2534.8,2534.7,5.30919]
[1748894107741,5.47e-06,2534.8,2534.7,5.61902163]
[1748894108038,5.47e-06,2534.8,2534.7,1.0985214]
[1748894108247,5.47e-06,2534.8,2534.7,0.78869]
[1748894108441,1.28220547,2534.8,2534.7,0.78869]
[1748894109240,4.49000547,2534.8,2534.7,0.78869]
[1748894109738,29.89000547,2534.8,2534.7,0.78869]
[1748894109945,26.68220547,2534.8,2534.7,0.78869]
[1748894111342,25.40000547,2534.8,2534.7,0.78869]
[1748894112444,26.69910547,2534.8,2534.7,0.78869]
[1748894112842,26.69910547,2534.8,2534.4,1.97194]
[1748894113142,26.69910547,2534.8,2534.7,0.78869]
[1748894115345,5.47e-06,2534.8,2534.7,0.78869]
[1748894115939,5.47e-06,2534.8,2534.7,2.04469]
[1748894120549,5.47e-06,2534.8,2534.7,0.78869]
[1748894125645,5.47e-06,2534.8,2534.7,1.09843225]
[1748894125845,5.47e-06,2534.8,2534.7,0.78869]
[1748894126944,3.65567943,2534.8,2534.7,1.09844185]
[1748894127140,29.05567943,2534.8,2534.7,0.78869]
[1748894128146,26.71600547,2534.8,2534.7,0.78869]
[1748894129956,29.05936951,2534.8,2534.7,0.78869]
[1748894130659,26.71600547,2534.8,2534.7,0.78869]
[1748894131051,29.05919747,2534.8,2534.7,0.78869]
[1748894131460,26.71600547,2534.8,2534.7,0.78869]
[1748894132556,27.74351485,2534.8,2534.7,0.78869]
[1748894133060,25.40000547,2534.8,2534.7,0.78869]
[1748894135063,25.40000547,2534.8,2534.7,1.46009]
[1748894135357,25.40000547,2534.8,2534.7,1.76979918]
[1748894135558,25.40000547,2534.8,2534.7,1.46009]
[1748894137357,5.47e-06,2534.8,2534.7,1.46009]
[1748894138759,1.25780547,2534.8,2534.7,1.46009]
[1748894139865,1.25780547,2534.8,2534.7,0.78869]
[1748894141056,5.47e-06,2534.8,2534.7,0.78869]
[1748894142460,1.35690547,2534.8,2534.7,0.78869]
[1748894145469,5.47e-06,2534.8,2534.7,0.78869]
[1748894149473,2.34351485,2534.8,2534.7,0.78869]
[1748894149775,5.47e-06,2534.8,2534.7,0.78869]
[1748894150438,2.34727474,2534.8,2534.7,0.78869]
[1748894152804,5.47e-06,2534.8,2534.7,0.78869]
[1748894152972,2.34727474,2534.8,2534.7,0.78869]
[1748894153179,5.47e-06,2534.8,2534.7,0.78869]
[1748894158176,3.59267474,2534.8,2534.7,0.78869]
[1748894161386,28.99267474,2534.8,2534.7,0.78869]
[1748894162690,26.64540547,2534.8,2534.7,0.78869]
[1748894163084,28.99460878,2534.8,2534.7,0.78869]
[1748894165992,27.74920878,2534.8,2534.7,0.78869]
[1748894167182,5.47e-06,2534.8,2534.7,0.78869]
[1748894169000,2.34920878,2534.8,2534.7,0.78869]
[1748894169389,3.60360878,2534.8,2534.7,0.78869]
[1748894172768,3.60360878,2534.8,2534.5,3.2388]
[1748894172769,0.78879,2534.4,2534.3,0.00591938]
[1748894172999,30.29877141,2534.4,2534.3,0.00591938]
[1748894173203,35.29877141,2534.4,2534.3,0.00591938]
[1748894173602,31.38259,2534.4,2534.3,0.00591938]
[1748894173998,32.62449,2534.4,2534.3,0.00591938]
[1748894174509,58.02449,2534.4,2534.3,0.00591938]
[1748894175507,0.78887,2534.2,2534.1,0.78887]
[1748894175705,0.7889,2534.1,2534.0,0.7889]
[1748894176007,5.8625,2534.1,2534.0,0.7889]
[1748894176204,31.2625,2534.1,2534.0,0.7889]
[1748894176402,30.4736,2534.1,2534.0,0.7889]
[1748894176912,8.75688508,2534.4,2534.3,0.78882]
[1748894177101,7.2378,2534.4,2534.3,0.78882]
[1748894177303,27.8078,2534.4,2534.3,0.78882]
[1748894177802,27.8078,2534.4,2534.3,2.05252]
[1748894182610,24.6,2534.4,2534.3,2.05252]
[1748894185314,20.3326,2534.7,2534.6,0.78872]
[1748894185511,1.9776,2534.7,2534.6,0.78872]
[1748894185711,44.9306,2534.7,2534.6,0.78872]
[1748894188815,45.5726,2534.7,2534.6,0.78872]
[1748894190120,45.5726,2534.7,2534.4,1.97197]
[1748894190317,3.2078,2534.5,2534.4,0.78879]
[1748894190513,3.2078,2534.5,2534.3,0.78879]
[1748894190724,5.2717,2534.4,2534.3,0.78882]
[1748894191224,48.2217,2534.4,2534.3,0.78882]
[1748894194925,48.2197,2534.4,2534.3,0.78882]
[1748894195323,42.948,2534.4,2534.3,0.78882]
[1748894199325,45.28969257,2534.4,2534.3,0.78882]
[1748894200525,45.28769257,2534.4,2534.3,0.78882]
[1748894203930,26.94169257,2534.4,2534.3,0.78882]
[1748894204333,21.5518,2534.5,2534.4,0.78879]
[1748894204334,5.54949257,2534.5,2534.4,0.78879]
[1748894204536,5.54949804,2534.8,2534.7,0.78869]
[1748894205035,3.20780547,2534.8,2534.7,0.78869]
[1748894205235,5.47e-06,2534.8,2534.7,0.78869]
[1748894205438,3.20780547,2534.8,2534.7,0.78869]
[1748894205739,5.54949804,2534.8,2534.7,0.78869]
[1748894208042,7.52409804,2534.8,2534.7,0.78869]
[1748894209833,25.86409804,2534.8,2534.7,0.78869]
[1748894212539,25.86209804,2534.8,2534.7,0.78869]
[1748894212935,23.52040547,2534.8,2534.7,0.78869]
[1748894218048,5.18240547,2534.8,2534.7,0.78869]
[1748894218247,23.51640547,2534.8,2534.7,0.78869]
[1748894219551,5.18240547,2534.8,2534.7,0.78869]
[1748894219764,23.51540547,2534.8,2534.7,0.78869]
[1748894220143,1.97460547,2534.8,2534.7,0.78869]
[1748894220344,26.57460547,2534.8,2534.7,0.78869]
[1748894220639,29.78240547,2534.8,2534.7,0.78869]
[1748894220842,28.45780547,2534.8,2534.7,0.78869]
[1748894221039,5.47e-06,2534.8,2534.7,0.78869]
[1748894221242,2.35053952,2534.8,2534.7,2.03539]
[1748894223047,5.47e-06,2534.8,2534.7,2.03539]
[1748894225250,2.35053952,2534.8,2534.7,2.03539]
[1748894225450,2.35053952,2534.8,2534.7,0.78869]
[1748894230153,3.69533952,2534.8,2534.7,0.78869]
[1748894230448,1.34480547,2534.8,2534.7,0.78869]
[1748894232356,5.47e-06,2534.8,2534.7,0.78869]
[1748894232657,2.35601905,2534.8,2534.7,0.78869]
[1748894233255,5.47e-06,2534.8,2534.7,0.78869]
[1748894237749,5.47e-06,2534.8,2534.7,8.99649]
[1748894243459,5.47e-06,2534.8,2534.7,5.28789]
[1748894244854,5.47e-06,2534.8,2534.7,10.28789]
[1748894245157,2.3576027,2535.3,2535.2,0.78854]
[1748894245362,0.6438,2535.5,2535.2,1.9713]
[1748894245572,3.0014027,2535.5,2535.4,0.78847]
[1748894245765,0.6438,2535.5,2535.4,0.78847]
[1748894246160,2.3576027,2535.6,2535.5,0.78844]
[1748894246363,3.64152208,2535.7,2535.6,0.78841]
[1748894250667,1.28391938,2535.7,2535.6,0.78841]
[1748894253065,3.64152208,2535.7,2535.6,0.78841]
[1748894254370,3.71221997,2535.7,2535.6,0.78841]
[1748894255965,2.43421997,2535.7,2535.6,0.78841]
[1748894256172,0.07661727,2535.7,2535.6,0.78841]
[1748894256361,1.96881727,2535.7,2535.6,0.78841]
[1748894258073,1.96881727,2535.7,2535.2,0.00591938]
[1748894258074,6.96881727,2535.7,2535.2,0.00591938]
[1748894258263,6.96881727,2535.7,2535.4,0.78845]
[1748894258264,4.40923389,2535.6,2535.4,0.78845]
[1748894258464,29.14262389,2535.5,2535.4,0.78845]
[1748894258870,26.7924,2535.5,2535.4,0.78845]
[1748894262368,0.7885,2535.4,2535.2,0.00591938]
[1748894262668,5.84645815,2535.4,2535.2,0.79442938]
[1748894262875,0.6724,2535.3,2535.2,0.79442938]
[1748894263173,1.9269,2535.3,2535.2,0.79442938]
[1748894264878,2.71541,2535.3,2535.2,0.79442938]
[1748894265069,1.9269,2535.3,2535.2,0.79442938]
[1748894266571,26.5269,2535.3,2535.2,0.79442938]
[1748894268176,26.5269,2535.3,2534.5,1.00415]
[1748894268177,1.97135,2535.2,2534.5,1.00415]
[1748894268477,3.99648,2534.8,2534.7,0.78867]
[1748894268670,21.5088,2534.8,2534.7,0.78867]
[1748894268869,22.29746,2534.8,2534.7,0.78867]
[1748894269069,49.53256,2534.8,2534.7,0.78867]
[1748894270379,52.66749414,2534.8,2534.7,0.78867]
[1748894271382,0.78872,2534.7,2534.6,0.7887]
[1748894271574,6.05182,2534.7,2534.6,0.7887]
[1748894272081,33.78675414,2534.7,2534.6,0.7887]
[1748894272373,30.65182,2534.7,2534.6,0.7887]
[1748894273373,33.00094625,2534.7,2534.6,0.7887]
[1748894273578,33.00236156,2534.7,2534.6,0.7887]
[1748894273882,33.00241445,2534.7,2534.6,0.7887]
[1748894275269,33.00241445,2534.7,2534.5,1.01006938]
[1748894275270,0.78872,2534.6,2534.5,1.01006938]
[1748894275475,1.97207,2534.3,2533.9,0.78894]
[1748894275676,1.97207,2534.3,2533.6,1.97255]
[1748894275677,0.78902,2533.7,2533.6,0.78903]
[1748894275886,27.8078,2533.7,2533.6,0.78903]
[1748894276179,28.5968,2533.7,2533.6,0.78903]
[1748894276383,27.8078,2533.7,2533.6,0.78903]
[1748894276883,28.5968,2533.7,2533.6,0.78903]
[1748894277085,27.8078,2533.7,2533.6,0.78903]
[1748894277284,29.8495,2533.7,2533.6,0.78903]
[1748894277486,29.8495,2533.7,2533.5,0.78905]
[1748894277680,29.8495,2533.7,2533.4,1.98691938]
[1748894277883,29.8495,2533.7,2533.6,0.78903]
[1748894278176,29.0605,2533.7,2533.6,0.78903]
[1748894278881,27.8078,2533.7,2533.6,0.78903]
[1748894280185,24.6,2533.7,2533.6,0.78903]
[1748894280581,27.8078,2533.7,2533.6,0.78903]
[1748894280982,27.8078,2533.7,2533.5,2.11564]
[1748894281185,27.8078,2533.7,2533.6,0.78903]
[1748894281680,27.8078,2533.7,2533.5,1.3266]
[1748894281681,28.5968,2533.7,2533.5,2.11564]
[1748894282187,27.8078,2533.7,2533.5,2.11566]
[1748894282386,27.8078,2533.7,2533.6,0.78903]
[1748894282687,27.8078,2533.7,2533.5,1.3266]
[1748894283184,27.8078,2533.7,2533.4,0.66461938]
[1748894283185,0.78907,2533.5,2533.4,0.00591938]
[1748894283380,21.14536,2533.6,2533.4,0.00591938]
[1748894283581,1.3692,2533.5,2533.4,0.00591938]
[1748894283981,19.6702,2533.5,2533.4,0.79501938]
[1748894284785,19.6702,2533.5,2533.4,0.00591938]
[1748894285081,19.6702,2533.5,2533.4,0.79501938]
[1748894287081,27.8078,2533.7,2533.4,0.00591938]
[1748894287291,27.8078,2533.7,2533.6,0.78903]
[1748894287487,46.1088,2533.7,2533.6,0.78903]
[1748894289983,18.301,2533.7,2533.6,0.78903]
[1748894290182,0.00591938,2533.9,2533.8,0.78897]
[1748894290783,0.00591938,2533.9,2533.8,1.41177]
[1748894292689,0.00591938,2533.9,2533.8,6.41177]
[1748894293681,9.38e-06,2533.9,2533.8,6.41177]
[1748894293876,9.38e-06,2533.9,2533.8,7.69667]
[1748894295285,9.38e-06,2533.9,2533.8,11.68767]
[1748894300486,9.38e-06,2533.9,2533.8,2.69667]
[1748894300688,9.38e-06,2533.9,2533.8,6.68667]
[1748894303801,9.38e-06,2533.9,2533.8,11.68667]
[1748894304091,9.38e-06,2533.9,2533.8,6.68667]
[1748894304291,9.38e-06,2533.9,2533.8,11.68667]
[1748894305190,3.2078,2534.6,2534.5,0.78875]
[1748894306588,4.4438,2534.6,2534.5,0.78875]
[1748894310197,1.236,2534.6,2534.5,0.78875]
[1748894315802,4.4438,2534.6,2534.5,0.78875]
[1748894324705,6.79242271,2534.6,2534.5,0.78875]
[1748894329218,5.55642271,2534.6,2534.5,0.78875]
[1748894330326,5.55642271,2534.6,2534.5,1.42535]
[1748894330722,18.275,2535.0,2534.5,1.42535]
[1748894330723,3.13493414,2535.1,2534.5,14.1865]
[1748894330926,7.12398141,2535.2,2534.5,14.1865]
[1748894330927,6.34273414,2535.2,2535.1,0.78857]
[1748894331315,7.62173414,2535.2,2535.1,0.78857]
[1748894331518,4.4868,2535.2,2535.1,0.78857]
[1748894335023,3.2078,2535.2,2535.1,0.78857]
[1748894335225,3.14085352,2535.4,2535.3,0.78851]
[1748894335226,0.00591938,2535.4,2535.3,0.78851]
[1748894336328,1.31901938,2535.4,2535.3,0.78851]
[1748894338722,6.31901938,2535.4,2535.3,0.78851]
[1748894341034,0.7886,2535.0,2534.9,0.00591938]
[1748894341229,3.2078,2535.0,2534.9,0.79451938]
[1748894341625,4.4611,2535.0,2534.9,0.79451938]
[1748894342328,1.2533,2535.0,2534.9,0.79451938]
[1748894343728,5.2497,2535.0,2534.9,0.00591938]
[1748894344233,8.3897453,2535.0,2534.9,0.00591938]
[1748894345029,5.1819453,2535.0,2534.9,0.00591938]
[1748894345336,8.3897453,2535.0,2534.9,0.00591938]
[1748894347529,10.2497,2535.0,2534.9,0.00591938]
[1748894347935,34.8497,2535.0,2534.9,0.00591938]
[1748894348337,57.0967,2535.0,2534.9,0.00591938]
[1748894351038,52.0967,2535.0,2534.9,0.00591938]
[1748894352128,29.8497,2535.0,2534.9,0.00591938]
[1748894352331,52.0967,2535.0,2534.9,0.00591938]
[1748894352531,29.8497,2535.0,2534.9,0.00591938]
[1748894352731,52.0967,2535.0,2534.9,0.00591938]
[1748894353638,0.78876,2534.6,2534.5,0.78873]
[1748894354435,2.15076,2534.6,2534.5,0.78873]
[1748894354742,0.78878,2534.5,2534.4,0.78876]
[1748894354942,0.78879,2534.4,2534.3,2.71221938]
[1748894355242,3.14171046,2534.4,2534.3,1.44881938]
[1748894355645,3.14171046,2534.4,2534.3,0.66001938]
[1748894355846,2.35292046,2534.4,2534.3,1.44880938]
[1748894356042,2.35276266,2534.5,2534.3,0.66001938]
[1748894356346,2.35278359,2534.5,2534.4,2.05219]
[1748894356636,0.78874,2534.6,2534.3,0.66001938]
[1748894356637,0.78879,2534.4,2534.3,0.00591938]
[1748894356846,5.31539,2534.4,2534.3,0.00591938]
[1748894361640,5.31539,2534.4,2533.9,0.6224]
[1748894361641,0.78891,2534.0,2533.9,0.6224]
[1748894361839,21.40132511,2534.0,2533.9,0.6224]
[1748894362035,0.789,2533.8,2533.7,0.789]
[1748894362235,3.13724329,2533.8,2533.7,0.789]
[1748894362843,0.789,2533.8,2533.7,0.789]
[1748894363144,3.13724329,2533.8,2533.7,0.789]
[1748894363344,30.94504329,2533.8,2533.7,0.789]
[1748894363539,28.5968,2533.8,2533.7,0.789]
[1748894363946,28.5968,2533.8,2533.6,2.05881]
[1748894363947,0.789,2533.7,2533.6,2.05881]
[1748894364144,0.78903,2533.6,2533.5,0.62831938]
[1748894364336,0.78903,2533.6,2533.5,1.41738938]
[1748894364543,0.78903,2533.6,2533.5,0.62831938]
[1748894365544,0.78903,2533.6,2533.5,0.00591938]
[1748894366339,2.04833,2533.6,2533.5,0.00591938]
[1748894366540,0.78903,2533.6,2533.5,0.00591938]
[1748894366745,43.65403,2533.6,2533.5,0.00591938]
[1748894367147,43.65403,2533.6,2533.5,0.65161938]
[1748894369042,43.65403,2533.6,2533.5,0.00591938]
[1748894369450,44.91483,2533.6,2533.5,0.00591938]
[1748894370240,24.6,2533.6,2533.5,0.79498938]
[1748894370449,2.34824329,2533.8,2533.7,0.789]
[1748894370752,0.00591938,2534.0,2533.9,0.78894]
[1748894370753,2.35416267,2534.0,2533.9,0.78894]
[1748894370949,2.35416267,2534.0,2533.9,3.99674]
[1748894371147,2.35416267,2534.0,2533.9,8.99674]
[1748894371355,2.35416267,2534.0,2533.9,10.33174]
[1748894371547,0.00591938,2534.0,2533.9,10.33174]
[1748894373751,0.00591938,2534.0,2533.9,2.12394]
[1748894375557,0.00591938,2534.0,2533.9,10.33174]
[1748894375746,3.2078,2534.8,2534.2,1.97212]
[1748894376056,0.7887,2534.7,2534.4,0.78879]
[1748894376247,0.07069789,2534.5,2534.4,0.78879]
[1748894376654,0.07069789,2534.5,2534.3,1.253]
[1748894376655,0.07069789,2534.5,2534.3,2.04179]
[1748894376955,0.07069789,2534.5,2534.4,0.78879]
[1748894377256,25.38872,2534.6,2534.4,0.78879]
[1748894377658,24.6,2534.6,2534.4,0.78879]
[1748894377855,26.74603,2534.6,2534.4,0.78879]
[1748894378047,26.74603,2534.6,2534.3,1.253]
[1748894378251,26.74603,2534.6,2534.4,0.78876]
[1748894378551,26.74603,2534.6,2534.5,0.78875]
[1748894379255,26.74603,2534.6,2534.4,0.78878]
[1748894379256,26.74604,2534.6,2534.4,0.78878]
[1748894379456,26.74604,2534.6,2534.3,1.253]
[1748894379758,26.74604,2534.6,2534.2,0.6274]
[1748894379759,3.2078,2534.5,2534.2,0.6274]
[1748894379956,5.35386,2534.5,2534.3,0.7888]
[1748894380150,3.2078,2534.5,2534.4,0.78879]
[1748894381557,3.2078,2534.5,2534.3,2.14589]
[1748894381759,5.1956,2534.5,2534.4,0.78879]
[1748894382259,5.1956,2534.5,2534.3,2.1459]
[1748894382459,5.1956,2534.5,2534.3,1.3571]
[1748894383058,5.98438,2534.5,2534.3,0.78879]
[1748894383257,5.98438,2534.5,2534.4,0.78879]
[1748894383453,5.1956,2534.5,2534.4,0.78879]
[1748894383653,5.1956,2534.5,2534.3,0.78879]
[1748894383860,5.98437,2534.5,2534.3,0.78879]
[1748894384059,5.1956,2534.5,2534.3,0.78879]
[1748894384360,5.98439,2534.5,2534.2,0.6274]
[1748894384660,5.98437,2534.5,2534.3,0.78879]
[1748894384861,5.98437,2534.5,2534.2,0.6274]
[1748894385062,0.78882,2534.3,2534.2,1.41624]
[1748894385261,2.026,2534.4,2534.3,0.78882]
[1748894386458,0.78882,2534.3,2534.2,1.41623]
[1748894386652,2.34972729,2534.3,2534.2,1.41625]
[1748894387159,1.2372,2534.4,2534.0,1.363]
[1748894387358,0.78883,2534.3,2534.2,0.78882]
[1748894387758,2.14413,2534.3,2534.2,0.78882]
[1748894388060,1.3553,2534.3,2534.2,0.78882]
[1748894388253,1.3553,2534.3,2534.1,0.6454]
[1748894388254,2.34984497,2534.3,2534.1,0.6454]
[1748894388566,3.2078,2534.5,2534.4,0.78879]
[1748894388758,6.34642497,2534.5,2534.4,0.78879]
[1748894388958,5.35188,2534.5,2534.4,0.78879]
[1748894389561,4.5631,2534.5,2534.4,0.78879]
[1748894390267,4.5631,2534.5,2534.3,0.78879]
[1748894390455,0.78879,2534.4,2534.2,0.78883]
[1748894390661,3.67179804,2534.4,2534.3,0.78882]
[1748894390965,3.67179804,2534.4,2534.1,0.6454]
[1748894391166,3.67179804,2534.4,2534.3,0.78882]
[1748894392360,4.46058804,2534.4,2534.3,0.78882]
[1748894392565,3.67179804,2534.4,2534.1,1.9256]
[1748894392866,4.46059804,2534.4,2534.3,0.78882]
[1748894393162,2.10941,2534.4,2534.3,0.78882]
[1748894393368,4.46019089,2534.4,2534.3,0.78882]
[1748894393563,0.78884,2534.3,2534.2,0.78884]
[1748894393763,0.78884,2534.3,2533.8,5.83031]
[1748894393764,0.78894,2533.9,2533.8,1.43906]
[1748894393966,0.78894,2534.0,2533.9,0.78893]
[1748894394168,0.7889,2534.1,2534.0,0.7889]
[1748894394360,0.78892,2534.0,2533.9,0.78892]
[1748894394565,1.43682,2534.0,2533.9,0.78892]
[1748894394863,25.2479,2534.0,2533.9,0.78892]
[1748894395062,26.03684,2534.0,2533.7,2.60421]
[1748894395270,3.2078,2534.0,2533.9,0.78894]
[1748894396073,3.2078,2534.0,2533.7,0.6317]
[1748894396270,2.35261333,2533.8,2533.7,1.4207]
[1748894396766,2.35361137,2533.8,2533.7,1.4207]
[1748894398861,2.35361137,2533.9,2533.8,0.78897]
[1748894399274,26.03302911,2534.1,2534.0,0.78891]
[1748894399469,0.78891,2534.0,2533.7,0.6317]
[1748894399673,2.35657051,2533.8,2533.7,1.4207]
[1748894399871,2.35657051,2533.8,2533.7,0.789]
[1748894400574,3.00447051,2534.1,2534.0,0.78891]
[1748894400871,0.6479,2534.1,2534.0,0.78891]
[1748894402073,4.6169,2534.1,2534.0,0.78891]
[1748894402276,7.74932911,2534.1,2534.0,0.78891]
[1748894402471,26.00532911,2534.1,2534.0,0.78891]
[1748894402675,22.225,2534.1,2533.9,0.78892]
[1748894402871,26.03102911,2534.1,2533.9,0.78891]
[1748894403175,3.13242911,2534.0,2533.5,0.00591938]
[1748894403485,6.35036677,2533.8,2533.7,0.789]
[1748894403981,3.2078,2533.8,2533.7,0.789]
[1748894404170,7.13933677,2533.8,2533.7,0.789]
[1748894404376,3.99677,2533.8,2533.7,0.789]
[1748894404677,3.2078,2533.8,2533.7,0.789]
[1748894404868,7.29331197,2533.8,2533.5,0.00591938]
[1748894405172,6.2074452,2533.7,2533.6,0.789]
[1748894405378,2.2384452,2533.7,2533.6,0.789]
[1748894405677,3.969,2534.2,2533.7,1.97249]
[1748894405678,3.14256677,2534.0,2533.7,1.97249]
[1748894405980,3.14256677,2534.0,2533.9,3.99674]
[1748894406183,5.22680677,2534.6,2533.9,5.18016]
[1748894406384,5.22680677,2534.6,2534.1,1.97217]
[1748894406385,4.43806677,2534.6,2534.1,1.97217]
[1748894406677,4.43806677,2534.6,2534.3,0.7888]
[1748894406884,3.93132677,2534.5,2534.3,0.7888]
[1748894407083,1.3505,2534.5,2534.4,0.78879]
[1748894407275,2.13925,2534.5,2534.3,0.78879]
[1748894407477,1.3505,2534.5,2534.4,0.78879]
[1748894407673,10.18039462,2536.0,2534.4,8.52037253]
[1748894407979,21.92700379,2537.4,2535.8,9.26057253]
[1748894408177,3.9458,2536.8,2536.7,3.2078]
[1748894408477,3.9458,2536.7,2536.3,0.78818]
[1748894408683,3.9458,2536.6,2536.4,0.31485515]
[1748894408974,3.9458,2536.7,2536.5,1.88791192]
[1748894409183,1.2418,2536.7,2536.6,3.9959]
[1748894409376,0.00591938,2536.8,2536.7,0.78807]
[1748894409773,9.38e-06,2536.8,2536.7,0.78807]
[1748894409976,9.38e-06,2536.8,2536.7,2.11305938]
[1748894410877,9.38e-06,2536.8,2536.7,0.78807]
[1748894411084,9.38e-06,2536.8,2536.6,3.99589]
[1748894411274,3.9458,2536.7,2536.6,3.99589]
[1748894411673,5.2165,2536.7,2536.6,3.99589]
[1748894412784,5.2165,2536.7,2536.6,0.78809]
[1748894413383,11.96686663,2536.7,2536.6,0.78809]
[1748894413581,11.96686663,2536.7,2536.6,1.1053301]
[1748894413880,11.96686663,2536.7,2536.2,3.21371938]
[1748894414069,8.02106663,2536.7,2536.6,0.7881]
[1748894414274,3.9458,2536.3,2536.2,3.21371938]
[1748894414473,3.9458,2536.3,2536.2,1.11147984]
[1748894414682,4.4785,2536.7,2536.6,0.7881]
[1748894414981,11.22886663,2536.7,2536.6,0.7881]
[1748894415182,15.17466663,2536.7,2536.6,0.7881]
[1748894415777,1.2707,2536.7,2536.6,0.7881]
[1748894416182,11.96686663,2536.7,2536.6,0.7881]
[1748894417182,15.17466663,2536.7,2536.2,3.21371938]
[1748894417392,3.9458,2536.3,2536.2,4.00194938]
[1748894417882,4.4785,2536.7,2536.6,0.7881]
[1748894418082,3.9458,2536.3,2536.2,3.21371938]
[1748894418482,10.69616663,2536.3,2536.2,0.00591938]
[1748894418687,11.48435663,2536.3,2536.2,0.00591938]
[1748894418890,12.76595663,2536.3,2536.2,0.00591938]
[1748894419089,12.76595663,2536.3,2536.0,0.78829]
[1748894419286,3.9458,2536.1,2536.0,0.78829]
[1748894419884,10.69616663,2536.1,2535.5,3.2078]
[1748894420079,10.69616663,2536.1,2535.5,0.78844]
[1748894420080,3.9458,2535.6,2535.5,0.78844]
[1748894420279,3.9458,2535.6,2535.5,0.79435938]
[1748894420679,1.2816,2536.0,2535.5,3.21371938]
[1748894420979,3.9458,2535.6,2535.5,0.79434938]
[1748894421385,10.69616663,2535.6,2535.5,0.79434938]
[1748894421587,10.69616663,2535.6,2535.5,0.00591938]
[1748894421987,10.69616663,2535.6,2535.5,0.79435938]
[1748894422185,12.04346663,2535.6,2535.5,0.79435938]
[1748894422785,12.04346663,2535.6,2535.5,0.00591938]
[1748894422982,12.04346663,2535.6,2535.5,0.79435938]
[1748894423488,0.6637,2536.3,2535.5,0.79435938]
[1748894423489,3.2078,2536.7,2535.8,1.97088]
[1748894423692,0.78816,2536.5,2535.9,1.97078]
[1748894423990,20.214,2536.5,2536.4,0.78816]
[1748894424186,27.75249663,2536.5,2536.4,0.78816]
[1748894424490,27.75249663,2536.5,2536.3,0.78818]
[1748894425085,0.78816,2536.4,2536.2,0.78821]
[1748894425289,27.75250663,2536.5,2536.3,0.78817]
[1748894425890,26.96436663,2536.5,2535.9,3.22658]
[1748894426104,0.07069789,2536.3,2536.2,0.7882]
[1748894426501,6.82106452,2536.3,2536.2,0.7882]
[1748894427000,0.07069789,2536.3,2536.2,0.7882]
[1748894428298,0.07069789,2536.3,2536.2,1.1055344]
[1748894428495,0.07069789,2536.3,2536.2,0.7882]
[1748894428891,0.07069789,2536.3,2536.2,2.0388]
[1748894429096,0.07069789,2536.3,2536.2,0.7882]
[1748894429698,0.07069789,2536.3,2536.2,1.10553247]
[1748894429899,0.07069789,2536.3,2536.2,1.10553398]
[1748894430091,0.07069789,2536.3,2536.2,0.7882]
[1748894431599,7.89e-06,2536.3,2536.2,0.7882]
[1748894431802,7.89e-06,2536.3,2536.2,5.7882]
[1748894431996,7.89e-06,2536.3,2536.2,7.11107327]
[1748894432202,7.89e-06,2536.3,2536.2,7.11110294]
[1748894432403,7.89e-06,2536.3,2536.2,2.11110294]
[1748894432601,7.89e-06,2536.3,2536.2,7.24110294]
[1748894433806,7.89e-06,2536.3,2536.2,2.11110294]